[Event "7th Cesme Open-A 2019"]
[Site "Cesme"]
[Date "2019.06.25"]
[Round "2"]
[White "Tepe, Efe Can"]
[Black "Eminov, Orkhan"]
[Result "0-1"]
[ECO "B27"]
[WhiteElo "2150"]
[BlackElo "2314"]
[Annotator "ChessBase"]
[PlyCount "78"]
[EventDate "2019.06.24"]
[EventType "swiss"]
[EventCountry "TUR"]
[SourceTitle "playchess.com"]
[Source "ChessBase"]
[SourceQuality "1"]
[TimeControl "5400+30"]

1. e4 {[%emt 0:00:30]} c5 {[%emt 0:04:30]} 2. Nf3 {[%emt 0:00:00]} g6 {[%emt 0:00:30]} 3. d4 {[%emt 0:01:00]} cxd4 {[%emt 0:01:30]} 4. Qxd4 {[%emt 0:00:30]} Nf6 {[%emt 0:00:30]} 5. Nc3 {[%emt 0:01:30]} Nc6 {[%emt 0:02:30]} 6. Qa4 {[%emt 0:00:30]} d6 {[%emt 0:03:30]} 7. e5 {[%emt 0:00:00]} dxe5 {[%emt 0:05:30]} 8. Nxe5 {[%emt 0:01:00]} Bd7 {[%emt 0:00:30]} 9. Nxd7 {[%emt 0:00:00]} Qxd7 {[%emt 0:01:30]} 10. Bf4 {[%emt 0:16:00]} Bg7 {[%emt 0:05:30]} 11. Rd1 {[%emt 0:01:30]} Qe6+ {[%emt 0:03:30]} 12. Be2 {[%emt 0:01:30]} O-O {[%emt 0:01:30]} 13. O-O {[%emt 0:00:30]} a6 {[%emt 0:01:30]} 14. Bf3 {[%emt 0:09:30]} Qf5 {[%emt 0:24:30]} 15. Bg3 {[%emt 0:26:30]} b5 {[%emt 0:09:30]} 16. Qb3 {[%emt 0:01:30]} Rac8 {[%emt 0:04:30]} 17. Rfe1 {[%emt 0:36:30]} e6 {[%emt 0:12:15]} 18. a4 {[%emt 0:00:00]} b4 {[%emt 0:03:17]} 19. Ne4 {[%emt 0:00:00]} Nxe4 {[%emt 0:03:23]} 20. Bxe4 {[%emt 0:00:00]} Qf6 {[%emt 0:03:14]} 21. Qd3 {[%emt 0:00:00]} Qxb2 {[%emt 0:02:40]} 22. Qxa6 {[%emt 0:00:00]} Nd4 {[%emt 0:00:04]} 23. Rb1 {[%emt 0:00:00]} Qa2 {[%emt 0:00:54]} 24. Rxb4 {[%emt 0:00:00]} Nxc2 {[%emt 0:00:54]} 25. Bxc2 {[%emt 0:02:19]} Qxc2 {[%emt 0:00:40]} 26. Rf4 {[%emt 0:01:34]} Bc3 {[%emt 0:01:49]} 27. Rf1 {[%emt 0:00:25]} Bg7 {[%emt 0:01:26]} 28. Rb4 {[%emt 0:00:31]} Rfd8 {[%emt 0:00:22]} 29. h3 {[%emt 0:00:38]} Bf8 {[%emt 0:01:13]} 30. Rb7 {[%emt 0:00:20]} Rd1 {[%emt 0:00:00]} 31. Rxd1 {[%emt 0:00:41]} Qxd1+ {[%emt 0:00:29]} 32. Kh2 {[%emt 0:00:11]} Rc1 {[%emt 0:00:00]} 33. Bf4 {[%emt 0:00:14]} Qg1+ {[%emt 0:00:43]} 34. Kg3 {[%emt 0:00:17]} Rc3+ {[%emt 0:00:39]} 35. Be3 {[%emt 0:01:19]} Bh6 {[%emt 0:01:40]} 36. Rb8+ {[%emt 0:00:37]} Kg7 {[%emt 0:00:06]} 37. Qb7 {[%emt 0:00:22]} Rxe3+ {[%emt 0:00:37]} 38. fxe3 {[%emt 0:00:48]} Qxe3+ {[%emt 0:00:05]} 39. Qf3 {[%emt 0:00:40]} Bf4+ {[%emt 0:00:43]} 0-1

[Event "7th Cesme Open-A 2019"]
[Site "Cesme"]
[Date "2019.06.25"]
[Round "3"]
[White "Bernadskiy, Vitaliy"]
[Black "Mohannad, Farhan"]
[Result "1-0"]
[ECO "E90"]
[WhiteElo "2578"]
[BlackElo "2193"]
[Annotator "ChessBase"]
[PlyCount "63"]
[EventDate "2019.06.24"]
[EventType "swiss"]
[EventCountry "TUR"]
[SourceTitle "playchess.com"]
[Source "ChessBase"]
[SourceQuality "1"]
[TimeControl "5400+30"]

1. c4 {[%emt 0:00:30]} Nf6 {[%emt 0:00:30]} 2. Nc3 {[%emt 0:00:30]} g6 {[%emt 0:00:30]} 3. e4 {[%emt 0:00:30]} d6 {[%emt 0:00:30]} 4. d4 {[%emt 0:00:30]} Bg7 {[%emt 0:00:30]} 5. h3 {[%emt 0:00:30]} O-O {[%emt 0:00:00]} 6. Be3 {[%emt 0:00:00]} c5 {[%emt 0:03:00]} 7. Nf3 {[%emt 0:00:00]} Nc6 {[%emt 0:01:30]} 8. d5 {[%emt 0:03:30]} Na5 {[%emt 0:00:30]} 9. Be2 {[%emt 0:02:30]} a6 {[%emt 0:02:30]} 10. a4 {[%emt 0:01:30]} e6 {[%emt 0:03:30]} 11. O-O {[%emt 0:00:30]} exd5 {[%emt 0:00:00]} 12. cxd5 {[%emt 0:00:00]} Re8 {[%emt 0:00:00]} 13. Nd2 {[%emt 0:04:00]} Bd7 {[%emt 0:01:30]} 14. Bf4 {[%emt 0:02:30]} b5 {[%emt 0:09:30]} 15. axb5 {[%emt 0:05:30]} axb5 {[%emt 0:00:30]} 16. Bxb5 {[%emt 0:18:30]} Bxb5 {[%emt 0:01:30]} 17. Nxb5 {[%emt 0:00:30]} Nxe4 {[%emt 0:00:00]} 18. Nxe4 {[%emt 0:05:30]} Rxe4 {[%emt 0:01:00]} 19. Bxd6 {[%emt 0:06:30]} Qb6 {[%emt 0:00:30]} 20. Qc2 {[%emt 0:03:30]} Rae8 {[%emt 0:18:30]} 21. Nc7 {[%emt 0:03:30]} Rc4 {[%emt 0:03:30]} 22. Qd2 {[%emt 0:01:30]} Rc8 {[%emt 0:05:30]} 23. Bg3 {[%emt 0:04:30]} Nb3 {[%emt 0:19:30]} 24. Qe2 {[%emt 0:00:30]} Rd4 {[%emt 0:00:00]} 25. Ra8 {[%emt 0:05:30]} Rxa8 {[%emt 0:03:00]} 26. Nxa8 {[%emt 0:00:00]} Qd8 {[%emt 0:00:30]} 27. Nc7 {[%emt 0:00:00]} Rd2 {[%emt 0:10:03]} 28. Qc4 {[%emt 0:01:30]} Nd4 {[%emt 0:01:44]} 29. Re1 {[%emt 0:00:30]} Bf8 {[%emt 0:02:52]} 30. Re8 {[%emt 0:02:30]} Qd7 {[%emt 0:00:09]} 31. Qa6 {[%emt 0:04:30]} Nf5 {[%emt 0:08:06]} 32. Be5 {[%emt 0:01:30]} 1-0

[Event "7th Cesme Open-A 2019"]
[Site "Cesme"]
[Date "2019.06.25"]
[Round "3"]
[White "Quparadze, Giga"]
[Black "Kucuksari, Kaan"]
[Result "1-0"]
[ECO "B12"]
[WhiteElo "2498"]
[BlackElo "2299"]
[Annotator "ChessBase"]
[PlyCount "71"]
[EventDate "2019.06.24"]
[EventType "swiss"]
[EventCountry "TUR"]
[SourceTitle "playchess.com"]
[Source "ChessBase"]
[SourceQuality "1"]
[TimeControl "5400+30"]

1. e4 {[%emt 0:00:30]} c6 {[%emt 0:00:30]} 2. d4 {[%emt 0:00:30]} d5 {[%emt 0:00:30]} 3. e5 {[%emt 0:00:30]} c5 {[%emt 0:00:00]} 4. dxc5 {[%emt 0:00:00]} Nc6 {[%emt 0:00:00]} 5. f4 {[%emt 0:00:00]} e6 {[%emt 0:00:00]} 6. Be3 {[%emt 0:00:00]} d4 {[%emt 0:00:00]} 7. Bf2 {[%emt 0:00:00]} Bxc5 {[%emt 0:00:00]} 8. Nd2 {[%emt 0:00:00]} Nge7 {[%emt 0:00:00]} 9. a3 {[%emt 0:03:00]} Nd5 {[%emt 0:03:30]} 10. Ne4 {[%emt 0:01:30]} Be7 {[%emt 0:04:30]} 11. Qf3 {[%emt 0:01:30]} O-O {[%emt 0:09:30]} 12. O-O-O {[%emt 0:02:30]} f5 {[%emt 0:00:00]} 13. exf6 {[%emt 0:00:30]} Bxf6 {[%emt 0:00:00]} 14. Nh3 {[%emt 0:03:30]} g6 {[%emt 0:08:30]} 15. Nxf6+ {[%emt 0:02:30]} Qxf6 {[%emt 0:01:30]} 16. g3 {[%emt 0:00:30]} Bd7 {[%emt 0:01:30]} 17. Bg2 {[%emt 0:00:30]} Rac8 {[%emt 0:10:30]} 18. Rhe1 {[%emt 0:00:30]} Qf5 {[%emt 0:04:30]} 19. Qd3 {[%emt 0:00:30]} Na5 {[%emt 0:05:30]} 20. Qxf5 {[%emt 0:00:30]} Rxf5 {[%emt 0:01:30]} 21. Ng5 {[%emt 0:00:30]} Ba4 {[%emt 0:01:30]} 22. Be4 {[%emt 0:00:30]} Nf6 {[%emt 0:03:30]} 23. Bd3 {[%emt 0:01:30]} e5 {[%emt 0:12:30]} 24. Kb1 {[%emt 0:01:30]} h6 {[%emt 0:03:30]} 25. Ne4 {[%emt 0:00:30]} Nxe4 {[%emt 0:00:30]} 26. Rxe4 {[%emt 0:00:30]} Bc6 {[%emt 0:10:04]} 27. Rxe5 {[%emt 0:00:30]} Rxe5 {[%emt 0:00:30]} 28. fxe5 {[%emt 0:00:00]} Bf3 {[%emt 0:00:02]} 29. Re1 {[%emt 0:00:00]} Nc6 {[%emt 0:00:24]} 30. Bxg6 {[%emt 0:00:30]} Kg7 {[%emt 0:00:00]} 31. Bf5 {[%emt 0:00:30]} Re8 {[%emt 0:00:00]} 32. Bd7 {[%emt 0:00:00]} Re7 {[%emt 0:01:30]} 33. Bxc6 {[%emt 0:00:00]} bxc6 {[%emt 0:01:00]} 34. Bxd4 {[%emt 0:00:00]} Bg4 {[%emt 0:00:49]} 35. e6+ {[%emt 0:00:00]} Kg6 {[%emt 0:00:14]} 36. Bc5 {[%emt 0:00:00]} 1-0

[Event "7th Cesme Open-A 2019"]
[Site "Cesme"]
[Date "2019.06.25"]
[Round "3"]
[White "Lavrov, Maxim"]
[Black "Unat, Can Haktan"]
[Result "1-0"]
[ECO "D41"]
[WhiteElo "2401"]
[BlackElo "2079"]
[Annotator "NA"]
[PlyCount "109"]
[EventDate "2019.06.24"]
[EventType "swiss"]
[EventCountry "TUR"]
[SourceTitle "playchess.com"]
[Source "ChessBase"]
[SourceQuality "1"]
[TimeControl "5400+30"]

1. e4 {[%emt 0:00:30]} c5 {[%emt 0:08:30]} 2. c3 {[%emt 0:00:30]} a6 {[%emt 0:00:00]} 3. d4 {[%emt 0:00:00]} cxd4 {[%emt 0:00:00]} 4. cxd4 {[%emt 0:00:00]} d5 {[%emt 0:00:00]} 5. exd5 {[%emt 0:00:30]} Nf6 {[%emt 0:00:00]} 6. Nc3 {[%emt 0:00:30]} Nxd5 {[%emt 0:00:30]} 7. Nf3 {[%emt 0:02:30]} Nc6 {[%emt 0:01:30]} 8. Bc4 {[%emt 0:01:30]} e6 {[%emt 0:02:30]} 9. O-O {[%emt 0:00:30]} Be7 {[%emt 0:01:30]} 10. Re1 {[%emt 0:09:30]} O-O {[%emt 0:00:30]} 11. Bd3 {[%emt 0:00:30]} b5 {[%emt 0:10:30]} 12. Nxd5 {[%emt 0:01:30]} exd5 {[%emt 0:10:30]} 13. Bxh7+ {[%emt 0:06:30]} Kxh7 {[%emt 0:00:30]} 14. Qc2+ {[%emt 0:00:30]} Kg8 {[%emt 0:02:30]} 15. Qxc6 {[%emt 0:00:00]} Ra7 {[%emt 0:05:30]} 16. Bf4 {[%emt 0:03:00]} Bf5 {[%emt 0:00:30]} 17. Rac1 {[%emt 0:02:30]} Be4 {[%emt 0:03:30]} 18. Qc3 {[%emt 0:05:30]} b4 {[%emt 0:04:30]} 19. Qe3 {[%emt 0:00:30]} f6 {[%emt 0:00:30]} 20. Nd2 {[%emt 0:01:30]} g5 {[%emt 0:09:30]} 21. Bg3 {[%emt 0:00:30]} f5 {[%emt 0:04:30]} 22. Be5 {[%emt 0:00:30]} Rf7 {[%emt 0:00:00]} 23. Nxe4 {[%emt 0:01:30]} dxe4 {[%emt 0:00:00]} 24. Qh3 {[%emt 0:01:30]} Bf6 {[%emt 0:05:30]} 25. Qxf5 {[%emt 0:00:30]} Bxe5 {[%emt 0:02:30]} 26. Qxe5 {[%emt 0:00:30]} Rad7 {[%emt 0:02:30]} 27. Qxe4 {[%emt 0:01:30]} Qf6 {[%emt 0:01:30]} 28. Qe3 {[%emt 0:01:30]} Rxd4 {[%emt 0:00:00]} 29. Rc6 {[%emt 0:00:00]} Qf4 {[%emt 0:02:00]} 30. Rg6+ {[%emt 0:17:00]} Kh7 {[%emt 0:02:30]} 31. Re6 {[%emt 0:02:30]} Qxe3 {[%emt 0:01:30]} 32. R6xe3 {[%emt 0:00:30]} Rf5 {[%emt 0:02:35]} 33. Re4 {[%emt 0:03:30]} Rd2 {[%emt 0:01:08]} 34. R4e2 {[%emt 0:00:30]} Rd3 {[%emt 0:00:28]} 35. h3 {[%emt 0:01:30]} b3 {[%emt 0:01:50]} 36. axb3 {[%emt 0:00:00]} Rxb3 {[%emt 0:00:29]} 37. Re7+ {[%emt 0:00:00]} Kg8 {[%emt 0:00:17]} 38. R7e5 {[%emt 0:00:30]} Rf4 {[%emt 0:01:12]} 39. Rxg5+ {[%emt 0:00:30]} Kf7 {[%emt 0:00:00]} 40. Re2 {[%emt 0:00:30]} Ra4 {[%emt 0:00:00]} 41. Rg3 {[%emt 0:01:30]} Rb6 {[%emt 0:00:03]} 42. Rf3+ {[%emt 0:00:30]} Kg7 {[%emt 0:00:14]} 43. g4 {[%emt 0:00:30]} Ra1+ {[%emt 0:00:38]} 44. Kg2 {[%emt 0:01:30]} Rd6 {[%emt 0:00:05]} 45. Re7+ {[%emt 0:00:30]} Kg6 {[%emt 0:00:51]} 46. Ra3 {[%emt 0:00:30]} Rc1 {[%emt 0:00:19]} 47. Ra7 {[%emt 0:01:30]} Rcc6 {[%emt 0:00:45]} 48. Kg3 {[%emt 0:00:00]} Rb6 {[%emt 0:00:22]} 49. h4 {[%emt 0:00:00]} Kf6 {[%emt 0:01:22]} 50. h5 {[%emt 0:00:30]} Rdc6 {[%emt 0:00:48]} 51. f3 {[%emt 0:00:30]} Rd6 {[%emt 0:00:30]} 52. Ra5 {[%emt 0:00:30]} Rdc6 {[%emt 0:01:54]} 53. h6 {[%emt 0:00:30]} Kg6 {[%emt 0:00:37]} 54. h7 {[%emt 0:00:30]} Rf6 {[%emt 0:00:50]} 55. h8=N+ {[%emt 0:00:00]} 1-0

[Event "7th Cesme Open-A 2019"]
[Site "Cesme"]
[Date "2019.06.25"]
[Round "3"]
[White "Erdogdu, Mert"]
[Black "Lomsadze, Davit"]
[Result "1/2-1/2"]
[ECO "C55"]
[WhiteElo "2391"]
[BlackElo "2292"]
[Annotator "NA"]
[PlyCount "57"]
[EventDate "2019.06.24"]
[EventType "swiss"]
[EventCountry "TUR"]
[SourceTitle "playchess.com"]
[Source "ChessBase"]
[SourceQuality "1"]
[TimeControl "5400+30"]

1. e4 {[%emt 0:00:30]} e5 {[%emt 0:00:30]} 2. Nf3 {[%emt 0:00:30]} Nc6 {[%emt 0:00:30]} 3. Bc4 {[%emt 0:00:00]} Nf6 {[%emt 0:00:00]} 4. d3 {[%emt 0:00:00]} h6 {[%emt 0:00:00]} 5. O-O {[%emt 0:00:00]} d6 {[%emt 0:00:00]} 6. c3 {[%emt 0:00:00]} g6 {[%emt 0:01:00]} 7. d4 {[%emt 0:01:30]} Qe7 {[%emt 0:04:30]} 8. Nbd2 {[%emt 0:03:30]} Bg7 {[%emt 0:01:30]} 9. Re1 {[%emt 0:01:30]} O-O {[%emt 0:00:30]} 10. h3 {[%emt 0:00:00]} Nd7 {[%emt 0:06:30]} 11. Nf1 {[%emt 0:01:00]} Nb6 {[%emt 0:02:30]} 12. Bb3 {[%emt 0:02:30]} Qf6 {[%emt 0:03:30]} 13. Be3 {[%emt 0:05:30]} Kh7 {[%emt 0:11:30]} 14. a4 {[%emt 0:01:30]} Na5 {[%emt 0:04:30]} 15. Bc2 {[%emt 0:00:30]} Nd7 {[%emt 0:00:00]} 16. Qe2 {[%emt 0:09:30]} c5 {[%emt 0:02:00]} 17. d5 {[%emt 0:02:30]} b6 {[%emt 0:02:30]} 18. b3 {[%emt 0:09:30]} Nb7 {[%emt 0:04:30]} 19. Ng3 {[%emt 0:02:30]} Qe7 {[%emt 0:01:30]} 20. h4 {[%emt 0:26:30]} Nf6 {[%emt 0:02:30]} 21. Nh2 {[%emt 0:01:30]} h5 {[%emt 0:01:30]} 22. Nf3 {[%emt 0:03:30]} Ng4 {[%emt 0:01:30]} 23. Bd2 {[%emt 0:00:30]} f6 {[%emt 0:00:30]} 24. Bd3 {[%emt 0:02:30]} Rb8 {[%emt 0:03:30]} 25. Ra2 {[%emt 0:01:30]} Bd7 {[%emt 0:00:30]} 26. Bb5 {[%emt 0:00:30]} Qe8 {[%emt 0:04:30]} 27. Rb1 {[%emt 0:01:30]} a5 {[%emt 0:00:30]} 28. Bxd7 {[%emt 0:05:29]} Qxd7 {[%emt 0:00:30]} 29. Qb5 {[%emt 0:03:58]} 1/2-1/2

[Event "7th Cesme Open-A 2019"]
[Site "Cesme"]
[Date "2019.06.25"]
[Round "3"]
[White "Bashirli, Nail"]
[Black "Fadeev, Semen"]
[Result "1-0"]
[ECO "C10"]
[WhiteElo "2367"]
[BlackElo "2168"]
[Annotator "NA"]
[PlyCount "89"]
[EventDate "2019.06.24"]
[EventType "swiss"]
[EventCountry "TUR"]
[SourceTitle "playchess.com"]
[Source "ChessBase"]
[SourceQuality "1"]
[TimeControl "5400+30"]

1. e4 {[%emt 0:00:30]} e6 {[%emt 0:00:30]} 2. d4 {[%emt 0:01:30]} d5 {[%emt 0:00:30]} 3. Nd2 {[%emt 0:00:00]} dxe4 {[%emt 0:00:00]} 4. Nxe4 {[%emt 0:00:00]} Nd7 {[%emt 0:00:00]} 5. Nf3 {[%emt 0:07:30]} Ngf6 {[%emt 0:00:30]} 6. Bd3 {[%emt 0:00:30]} c5 {[%emt 0:04:30]} 7. Nxf6+ {[%emt 0:03:30]} Nxf6 {[%emt 0:01:30]} 8. O-O {[%emt 0:00:00]} cxd4 {[%emt 0:01:30]} 9. Nxd4 {[%emt 0:02:00]} Bc5 {[%emt 0:09:30]} 10. Nf3 {[%emt 0:00:30]} h6 {[%emt 0:01:30]} 11. Ne5 {[%emt 0:01:30]} O-O {[%emt 0:01:30]} 12. Qf3 {[%emt 0:00:30]} Qd5 {[%emt 0:00:30]} 13. Qxd5 {[%emt 0:00:30]} Nxd5 {[%emt 0:07:30]} 14. a3 {[%emt 0:05:30]} Rd8 {[%emt 0:10:30]} 15. Rd1 {[%emt 0:01:30]} f6 {[%emt 0:02:30]} 16. Nf3 {[%emt 0:00:30]} Bd7 {[%emt 0:01:30]} 17. c4 {[%emt 0:00:30]} Nc7 {[%emt 0:00:30]} 18. b4 {[%emt 0:00:30]} Bf8 {[%emt 0:01:30]} 19. Be4 {[%emt 0:00:30]} Bc6 {[%emt 0:01:30]} 20. Bc2 {[%emt 0:02:30]} Be4 {[%emt 0:08:30]} 21. Bb3 {[%emt 0:02:30]} Bxf3 {[%emt 0:03:30]} 22. gxf3 {[%emt 0:00:30]} Rxd1+ {[%emt 0:01:30]} 23. Bxd1 {[%emt 0:00:00]} a5 {[%emt 0:00:30]} 24. b5 {[%emt 0:00:00]} e5 {[%emt 0:00:30]} 25. f4 {[%emt 0:01:30]} e4 {[%emt 0:12:30]} 26. f5 {[%emt 0:00:30]} Ne8 {[%emt 0:02:30]} 27. Bc2 {[%emt 0:02:30]} Nd6 {[%emt 0:00:30]} 28. Bf4 {[%emt 0:01:30]} Re8 {[%emt 0:04:30]} 29. Re1 {[%emt 0:02:30]} Kh8 {[%emt 0:01:30]} 30. c5 {[%emt 0:01:30]} Nxf5 {[%emt 0:01:30]} 31. Rxe4 {[%emt 0:02:30]} Rc8 {[%emt 0:00:30]} 32. c6 {[%emt 0:00:30]} bxc6 {[%emt 0:05:52]} 33. Rc4 {[%emt 0:00:30]} Nd6 {[%emt 0:01:16]} 34. Rxc6 {[%emt 0:00:30]} Rxc6 {[%emt 0:02:24]} 35. bxc6 {[%emt 0:00:30]} Nc8 {[%emt 0:00:11]} 36. Bf5 {[%emt 0:00:30]} Nb6 {[%emt 0:07:04]} 37. c7 {[%emt 0:00:30]} Bc5 {[%emt 0:01:02]} 38. Be3 {[%emt 0:01:30]} Bxe3 {[%emt 0:00:20]} 39. fxe3 {[%emt 0:00:00]} Kg8 {[%emt 0:00:44]} 40. c8=B {[%emt 0:00:00]} Nxc8 {[%emt 0:00:30]} 41. Bxc8 {[%emt 0:00:30]} Kf7 {[%emt 0:00:30]} 42. Kf2 {[%emt 0:00:30]} g6 {[%emt 0:00:30]} 43. a4 {[%emt 0:00:00]} Ke7 {[%emt 0:02:46]} 44. Kf3 {[%emt 0:00:00]} Kd6 {[%emt 0:00:28]} 45. Ke4 {[%emt 0:00:00]} 1-0

[Event "7th Cesme Open-A 2019"]
[Site "Cesme"]
[Date "2019.06.25"]
[Round "3"]
[White "Koksal, Ege"]
[Black "Yerden, Huseyin Eren"]
[Result "1-0"]
[ECO "B38"]
[WhiteElo "2363"]
[BlackElo "1992"]
[Annotator "NA"]
[PlyCount "96"]
[EventDate "2019.06.24"]
[EventType "swiss"]
[EventCountry "TUR"]
[SourceTitle "playchess.com"]
[Source "ChessBase"]
[SourceQuality "1"]
[TimeControl "5400+30"]

1. c4 {[%emt 0:02:30]} b6 {[%emt 0:02:30]} 2. Nc3 {[%emt 0:00:30]} c5 {[%emt 0:00:30]} 3. Nf3 {[%emt 0:00:30]} Bb7 {[%emt 0:02:30]} 4. e4 {[%emt 0:00:30]} d6 {[%emt 0:00:00]} 5. d4 {[%emt 0:01:30]} cxd4 {[%emt 0:00:00]} 6. Nxd4 {[%emt 0:00:30]} Nf6 {[%emt 0:01:30]} 7. f3 {[%emt 0:00:30]} g6 {[%emt 0:10:30]} 8. Be2 {[%emt 0:00:30]} Bg7 {[%emt 0:00:30]} 9. O-O {[%emt 0:00:30]} O-O {[%emt 0:00:00]} 10. Be3 {[%emt 0:00:30]} Nc6 {[%emt 0:01:00]} 11. Nc2 {[%emt 0:00:30]} Rc8 {[%emt 0:01:30]} 12. Qd2 {[%emt 0:01:30]} Qc7 {[%emt 0:05:30]} 13. Rac1 {[%emt 0:01:30]} Qb8 {[%emt 0:02:30]} 14. Rfd1 {[%emt 0:03:30]} Rfd8 {[%emt 0:01:30]} 15. b3 {[%emt 0:01:30]} Qa8 {[%emt 0:00:30]} 16. Nd5 {[%emt 0:04:30]} Rd7 {[%emt 0:04:30]} 17. Bh6 {[%emt 0:11:30]} Bh8 {[%emt 0:03:30]} 18. Kh1 {[%emt 0:02:30]} e6 {[%emt 0:04:30]} 19. Nxf6+ {[%emt 0:00:30]} Bxf6 {[%emt 0:00:00]} 20. Ne3 {[%emt 0:04:30]} Bh8 {[%emt 0:03:00]} 21. Ng4 {[%emt 0:05:30]} Ne5 {[%emt 0:04:30]} 22. Nxe5 {[%emt 0:00:30]} Bxe5 {[%emt 0:00:30]} 23. Bf4 {[%emt 0:08:30]} Rcd8 {[%emt 0:02:30]} 24. Bxe5 {[%emt 0:13:30]} dxe5 {[%emt 0:00:30]} 25. Qg5 {[%emt 0:02:30]} Qb8 {[%emt 0:00:30]} 26. Rxd7 {[%emt 0:00:30]} Rxd7 {[%emt 0:00:30]} 27. h4 {[%emt 0:00:00]} Kg7 {[%emt 0:01:30]} 28. c5 {[%emt 0:02:00]} h6 {[%emt 0:01:30]} 29. Qe3 {[%emt 0:01:30]} bxc5 {[%emt 0:03:30]} 30. Rxc5 {[%emt 0:00:30]} Qd8 {[%emt 0:02:30]} 31. g3 {[%emt 0:00:30]} Qb6 {[%emt 0:01:30]} 32. Qc3 {[%emt 0:00:30]} f6 {[%emt 0:00:30]} 33. Kg2 {[%emt 0:02:30]} h5 {[%emt 0:02:30]} 34. b4 {[%emt 0:01:30]} Qd6 {[%emt 0:01:30]} 35. Kf2 {[%emt 0:00:30]} Qb6 {[%emt 0:02:30]} 36. Kg2 {[%emt 0:07:54]} Qd6 {[%emt 0:01:30]} 37. a4 {[%emt 0:00:59]} Kg8 {[%emt 0:04:30]} 38. Kf2 {[%emt 0:01:09]} Kf7 {[%emt 0:04:30]} 39. a5 {[%emt 0:01:25]} a6 {[%emt 0:00:30]} 40. b5 {[%emt 0:04:40]} axb5 {[%emt 0:02:30]} 41. Bxb5 {[%emt 0:00:39]} Re7 {[%emt 0:00:30]} 42. Be2 {[%emt 0:00:00]} Ba8 {[%emt 0:04:30]} 43. a6 {[%emt 0:00:21]} f5 {[%emt 0:06:31]} 44. Rc8 {[%emt 0:06:26]} Ra7 {[%emt 0:01:04]} 45. Qe3 {[%emt 0:01:42]} Qd7 {[%emt 0:02:20]} 46. Rh8 {[%emt 0:00:51]} f4 {[%emt 0:01:10]} 47. Rh7+ {[%emt 0:02:54]} Kg8 {[%emt 0:00:49]} 48. Qxa7 {[%emt 0:00:01]} Qb5 {[%emt 0:00:22]} 1-0

[Event "7th Cesme Open-A 2019"]
[Site "Cesme"]
[Date "2019.06.25"]
[Round "3"]
[White "Kamer, Kayra"]
[Black "Abdullayev, Azer"]
[Result "1/2-1/2"]
[ECO "B84"]
[WhiteElo "2353"]
[BlackElo "2064"]
[Annotator "NA"]
[PlyCount "118"]
[EventDate "2019.06.24"]
[EventType "swiss"]
[EventCountry "TUR"]
[SourceTitle "playchess.com"]
[Source "ChessBase"]
[SourceQuality "1"]
[TimeControl "5400+30"]

1. e4 {[%emt 0:04:30]} c5 {[%emt 0:00:30]} 2. Nf3 {[%emt 0:00:30]} d6 {[%emt 0:00:30]} 3. d4 {[%emt 0:00:30]} cxd4 {[%emt 0:00:30]} 4. Nxd4 {[%emt 0:00:30]} Nf6 {[%emt 0:00:30]} 5. Nc3 {[%emt 0:00:30]} a6 {[%emt 0:00:00]} 6. Be2 {[%emt 0:00:00]} e6 {[%emt 0:02:00]} 7. Be3 {[%emt 0:00:00]} Nbd7 {[%emt 0:00:30]} 8. O-O {[%emt 0:02:30]} b5 {[%emt 0:02:30]} 9. a4 {[%emt 0:03:30]} bxa4 {[%emt 0:04:30]} 10. Rxa4 {[%emt 0:01:30]} Nc5 {[%emt 0:03:30]} 11. Rc4 {[%emt 0:00:30]} Bb7 {[%emt 0:20:30]} 12. Bf3 {[%emt 0:03:30]} Nfd7 {[%emt 0:02:30]} 13. Rb4 {[%emt 0:09:30]} a5 {[%emt 0:06:30]} 14. Rb5 {[%emt 0:05:30]} Ba6 {[%emt 0:01:30]} 15. e5 {[%emt 0:02:30]} Bxb5 {[%emt 0:11:30]} 16. Ndxb5 {[%emt 0:01:30]} d5 {[%emt 0:01:30]} 17. Nxd5 {[%emt 0:00:30]} exd5 {[%emt 0:00:30]} 18. Bxd5 {[%emt 0:00:00]} Ra6 {[%emt 0:08:30]} 19. Qf3 {[%emt 0:01:00]} Re6 {[%emt 0:07:30]} 20. Bxe6 {[%emt 0:01:30]} Nxe6 {[%emt 0:01:30]} 21. Qc6 {[%emt 0:00:00]} Bc5 {[%emt 0:05:42]} 22. Bxc5 {[%emt 0:01:00]} Nexc5 {[%emt 0:00:02]} 23. Nd6+ {[%emt 0:00:00]} Kf8 {[%emt 0:00:55]} 24. Nf5 {[%emt 0:01:00]} g6 {[%emt 0:03:38]} 25. Nd6 {[%emt 0:12:30]} Kg7 {[%emt 0:02:15]} 26. Rd1 {[%emt 0:01:30]} Qe7 {[%emt 0:07:36]} 27. f4 {[%emt 0:00:30]} Rb8 {[%emt 0:03:47]} 28. b3 {[%emt 0:00:30]} Qe6 {[%emt 0:00:35]} 29. Qf3 {[%emt 0:00:30]} f6 {[%emt 0:02:07]} 30. exf6+ {[%emt 0:01:30]} Nxf6 {[%emt 0:00:43]} 31. Qc3 {[%emt 0:03:30]} Ncd7 {[%emt 0:00:33]} 32. h3 {[%emt 0:02:30]} Kg8 {[%emt 0:00:35]} 33. f5 {[%emt 0:00:30]} gxf5 {[%emt 0:00:45]} 34. Qg3+ {[%emt 0:00:30]} Kh8 {[%emt 0:00:06]} 35. Re1 {[%emt 0:00:30]} f4 {[%emt 0:00:37]} 36. Rxe6 {[%emt 0:00:30]} fxg3 {[%emt 0:00:30]} 37. Nf5 {[%emt 0:00:30]} Re8 {[%emt 0:00:20]} 38. Rxe8+ {[%emt 0:00:30]} Nxe8 {[%emt 0:00:30]} 39. Nxg3 {[%emt 0:00:00]} Kg7 {[%emt 0:00:51]} 40. Kf2 {[%emt 0:00:00]} Kf6 {[%emt 0:00:00]} 41. Ke3 {[%emt 0:00:00]} Ke5 {[%emt 0:00:00]} 42. Ne4 {[%emt 0:01:00]} Nef6 {[%emt 0:00:18]} 43. Nd2 {[%emt 0:00:30]} Nd5+ {[%emt 0:00:41]} 44. Kd3 {[%emt 0:00:00]} Nf4+ {[%emt 0:00:16]} 45. Kc4 {[%emt 0:00:00]} Nxg2 {[%emt 0:00:30]} 46. Kb5 {[%emt 0:00:30]} Nf4 {[%emt 0:01:01]} 47. h4 {[%emt 0:00:30]} h5 {[%emt 0:00:46]} 48. Kxa5 {[%emt 0:00:00]} Kd4 {[%emt 0:00:07]} 49. b4 {[%emt 0:01:00]} Kc3 {[%emt 0:00:37]} 50. Ne4+ {[%emt 0:00:00]} Kxc2 {[%emt 0:00:38]} 51. Ng3 {[%emt 0:00:00]} Kd3 {[%emt 0:00:18]} 52. b5 {[%emt 0:01:30]} Kc4 {[%emt 0:00:11]} 53. Ne4 {[%emt 0:00:30]} Kd4 {[%emt 0:01:18]} 54. Ng3 {[%emt 0:00:30]} Kd5 {[%emt 0:00:00]} 55. Ka6 {[%emt 0:00:00]} Kd6 {[%emt 0:00:59]} 56. Ka7 {[%emt 0:04:00]} Kc5 {[%emt 0:00:22]} 57. Ka6 {[%emt 0:00:30]} Kd5 {[%emt 0:00:38]} 58. Ka7 {[%emt 0:00:00]} Kd6 {[%emt 0:00:38]} 59. b6 {[%emt 0:01:00]} Nxb6 {[%emt 0:00:29]} 1/2-1/2